lending/lending_fUSD_20240806
["ID","MTS","AMOUNT","RATE_DAILY","PERIOD"]
[334298878,1722925579067,-167.84,0.00010225,2]
[334298879,1722925579087,-300.0,0.00010226,2]
[334298880,1722925579108,-179.62,0.00010227,2]
[334298881,1722925579131,-8490.22,0.00010227,2]
[334298882,1722925579151,-773.24,0.00010229,2]
[334298883,1722925579173,-1759.11,0.00010475,2]
[334298884,1722925579192,-22623.06902269,0.00010728,2]
[334298885,1722925579215,-150.0,0.00010737,2]
[334298886,1722925579235,-594.76876135,0.00010738,2]
[334298887,1722925579255,-155.0,0.00010738,2]
[334298888,1722925579280,-15475.39970181,0.00010738,2]
[334298889,1722925579302,-155.36263632,0.00010738,2]
[334298890,1722925579322,-155.0,0.00010738,2]
[334298891,1722925579343,-155.10453963,0.00010738,2]
[334298892,1722925579363,-209.98542281,0.00010738,2]
[334298893,1722925579385,-1405.38101574,0.00010738,2]
[334298894,1722925579406,-203.31285959,0.00010738,2]
[334298895,1722925579427,-155.0,0.00010738,2]
[334298896,1722925579448,-155.27698119,0.00010738,2]
[334298897,1722925579468,-165.42755717,0.00010738,2]
[334298898,1722925579489,-159.52802673,0.00010738,2]
[334298899,1722925579508,-313.56779303,0.00010738,2]
[334298900,1722925579533,-1297.62235699,0.00010738,2]
[334298901,1722925579554,-1074.12957374,0.00010738,2]
[334298902,1722925579576,-155.115205,0.00010738,2]
[334298903,1722925579597,-3119.38384377,0.00010738,2]
[334298904,1722925579618,-1500.0,0.00010738,2]
[334298905,1722925579638,-205.84081524,0.00010738,2]
[334298906,1722925579659,-155.0,0.00010738,2]
[334298907,1722925579680,-5401.11645721,0.00010738,2]
[334298908,1722925579701,-186.13978554,0.00010738,2]
[334298909,1722925579722,-201.43612161,0.00010738,2]
[334298910,1722925579743,-1176.3199048,0.00010738,2]
[334298911,1722925579764,-3402.64786187,0.00010738,2]
[334298912,1722925579788,-270.43561965,0.00010738,2]
[334298913,1722925579809,-255.06784743,0.00010738,2]
[334298914,1722925579831,-600.45534575,0.00010738,2]
[334298915,1722925579857,-418.97004719,0.00010738,2]
[334298916,1722925579878,-439.86607243,0.00010738,2]
[334298917,1722925579898,-10529.194286,0.00010738,2]
[334298918,1722925579919,-330.04532023,0.00010738,2]
[334298919,1722925579939,-295.80439418,0.00010738,2]
[334298920,1722925579960,-380.14796081,0.00010738,2]
[334298921,1722925579981,-206.66942035,0.00010738,2]
[334298922,1722925580002,-2385.06010554,0.00010738,2]
[334298923,1722925580024,-155.10578011,0.00010738,2]
[334298924,1722925580044,-155.0,0.00010738,2]
[334298925,1722925580065,-2839.69302548,0.00010738,2]
[334298926,1722925580085,-1138.52210003,0.00010738,2]
[334298927,1722925580105,-181.67926095,0.00010738,2]
[334298928,1722925580125,-155.0,0.00010738,2]
[334298929,1722925580148,-155.15877027,0.00010738,2]
[334298930,1722925580168,-3080.64330084,0.00010738,2]
[334298931,1722925580190,-547.5533665,0.00010738,2]
[334298932,1722925580210,-686.66832223,0.00010738,2]
[334298933,1722925580234,-365.55814847,0.00010738,2]
[334298934,1722925580254,-155.0,0.00010738,2]
[334298935,1722925580276,-347.5045085,0.00010738,2]
[334298936,1722925580296,-454.36595222,0.00010738,2]
[334298937,1722925580317,-197.03073788,0.00010738,2]
[334298938,1722925580337,-236.22265228,0.00010738,2]
[334298939,1722925580357,-921.08584336,0.00010738,2]
[334298940,1722925580377,-4492.93257221,0.00010738,2]
[334298941,1722925580397,-723.05727297,0.00010738,2]
[334298942,1722925580416,-155.0,0.00010738,2]
[334298943,1722925580436,-155.67714629,0.00010738,2]
[334298944,1722925580456,-155.0,0.00010738,2]
[334298945,1722925580476,-328.08103898,0.00010738,2]
[334298946,1722925580495,-155.12103315,0.00010738,2]
[334298947,1722925580516,-155.0,0.00010738,2]
[334298948,1722925580862,-158.92312408,0.00010738,2]
[334298949,1722925580883,-297.33720666,0.00010738,2]
[334298950,1722925580904,-155.06510407,0.00010738,2]
[334298951,1722925580925,-253.38448167,0.00010738,2]
[334298952,1722925580945,-253.08327474,0.00010738,2]
[334298953,1722925580966,-155.59935761,0.00010738,2]
[334298954,1722925580986,-164.30370946,0.00010738,2]
[334298955,1722925581007,-155.86013976,0.00010738,2]
[334298956,1722925581029,-155.0,0.00010738,2]
[334298957,1722925581049,-155.95815908,0.00010738,2]
[334298958,1722925581069,-158.97080214,0.00010738,2]
[334298959,1722925581090,-162.15440718,0.00010738,2]
[334298960,1722925581111,-164.3205544,0.00010738,2]
[334298961,1722925581133,-155.06830734,0.00010738,2]
[334298962,1722925581157,-155.2091091,0.00010738,2]
[334298963,1722925581179,-155.64555171,0.00010738,2]
[334298964,1722925581199,-155.07752341,0.00010738,2]
[334298965,1722925581220,-303.44011895,0.00010738,2]
[334298966,1722925581241,-155.10091788,0.00010738,2]
[334298967,1722925581261,-155.71535338,0.00010738,2]
[334298968,1722925581283,-155.0,0.00010738,2]
[334298969,1722925581304,-155.05642676,0.00010738,2]
[334298970,1722925581328,-183.51200009,0.00010738,2]
[334298971,1722925581349,-211.51511495,0.00010738,2]
[334298972,1722925581369,-155.08373419,0.00010738,2]
[334298973,1722925581390,-157.25242803,0.00010738,2]
[334298974,1722925581410,-155.0706838,0.00010738,2]
[334298975,1722925581431,-363.99654651,0.00010738,2]
[334298976,1722925581452,-181.74947375,0.00010738,2]
[334298977,1722925581473,-155.95126116,0.00010738,2]
[334298978,1722925581495,-211.69041495,0.00010738,2]
[334298979,1722925581516,-155.10534694,0.00010738,2]
[334298980,1722925581541,-155.21621645,0.00010738,2]
[334298981,1722925581563,-521.85175988,0.00010738,2]
[334298982,1722925581584,-155.12890595,0.00010738,2]
[334298983,1722925581606,-155.98612488,0.00010738,2]
[334298984,1722925581628,-155.10113592,0.00010738,2]
[334298985,1722925581649,-200.3770664,0.00010738,2]
[334298986,1722925581669,-197.03130929,0.00010738,2]
[334298987,1722925581691,-297.12795746,0.00010738,2]
[334298988,1722925581711,-2214.58758417,0.00010738,2]
[334298989,1722925581732,-155.31534165,0.00010738,2]
[334298990,1722925581754,-277.30617918,0.00010738,2]
[334298991,1722925581778,-1423.7355633,0.00010738,2]
[334298992,1722925581800,-155.18703391,0.00010738,2]
[334298993,1722925581821,-155.09842125,0.00010738,2]
[334298994,1722925581843,-155.0,0.00010738,2]
[334298995,1722925581864,-155.07660308,0.00010738,2]
[334298996,1722925581885,-412.86502835,0.00010738,2]
[334298997,1722925581905,-155.05593977,0.00010738,2]
[334298998,1722925581925,-155.0,0.00010738,2]
[334298999,1722925581946,-155.29520809,0.00010738,2]
[334299000,1722925581965,-526.23743645,0.00010738,2]
[334299001,1722925581985,-588.5792344,0.00010738,2]
[334299002,1722925582005,-155.05762082,0.00010738,2]
[334299003,1722925582029,-892.04452683,0.00010738,2]
[334299004,1722925582049,-1725.0,0.00010738,2]
[334299005,1722925582070,-499.99,0.00010738,2]
[334299006,1722925582090,-1256.82211044,0.00010738,2]
[334299007,1722925582110,-177.89577628,0.00010738,2]
[334299008,1722925582131,-32819.6747,0.0001078,2]
[334299009,1722925582154,-7449.5946,0.0001078,2]
[334299010,1722925582175,-187.232,0.0001078,2]
[334299011,1722925582198,-10287.5871,0.0001078,2]
[334299012,1722925582219,-421.8591,0.0001078,2]
[334299013,1722925582240,-157.21133505,0.0001079,2]
[334299014,1722925582261,-172.97670485,0.0001079,2]
[334299015,1722925582284,-193.54374538,0.0001079,2]
[334299016,1722925582304,-739.73065788,0.0001079,2]
[334299017,1722925582325,-1795.14849961,0.0001082,2]
[334299018,1722925582347,-6058.92911279,0.0001082,2]
[334299019,1722925582369,-163.5819502,0.00010877,2]
[334299020,1722925582389,-90203.46416343,0.0001088,2]
[334299125,1722925774938,200.0,9.367e-05,2]
[334299130,1722925801582,197.25,7.493e-05,2]
[334299131,1722925815816,195.14,9.362e-05,2]
[334299132,1722925823517,1681.31,8.219e-05,2]
[334299170,1722925832274,-150.0,9.979e-05,2]
[334299171,1722925832284,-292.78390852,9.98e-05,2]
[334299173,1722925837816,-2793.47137399,9.98e-05,2]
[334299174,1722925837874,-405.79384232,9.98e-05,2]
[334299175,1722925837886,-374.13476232,9.98e-05,2]
[334299176,1722925837898,-12225.83158613,9.98e-05,2]
[334299177,1722925837910,-25133.075875,9.98e-05,2]
[334299178,1722925837922,-1839.93992941,9.98e-05,2]
[334299179,1722925837933,-512.33198686,9.98e-05,2]
[334299180,1722925837952,-356249.56902523,9.98e-05,2]
[334299181,1722925837962,-155.0,0.0001,2]
[334299182,1722925837971,-188.8,0.00010114,2]
[334299183,1722925837981,-188.8,0.00010117,2]
[334299184,1722925837991,-188.8,0.0001012,2]
[334299185,1722925838000,-188.8,0.00010122,2]
[334299186,1722925838009,-188.8,0.00010125,2]
[334299187,1722925838019,-188.8,0.00010128,2]
[334299188,1722925838028,-499.99,0.0001013,2]
[334299189,1722925838037,-299.99,0.0001013,2]
[334299190,1722925838046,-188.8,0.0001013,2]
[334299191,1722925838055,-188.8,0.00010133,2]
[334299192,1722925838064,-188.8,0.00010136,2]
[334299193,1722925838074,-188.8,0.00010138,2]
[334299194,1722925838083,-188.8,0.00010141,2]
[334299195,1722925838097,-188.8,0.00010144,2]
[334299196,1722925838106,-188.8,0.00010146,2]
[334299197,1722925838115,-188.8,0.00010149,2]
[334299198,1722925838125,-188.8,0.00010152,2]
[334299199,1722925838134,-188.8,0.00010154,2]
[334299201,1722925838143,-188.8,0.00010157,2]
[334299203,1722925838153,-188.8,0.0001016,2]
[334299205,1722925838162,-188.8,0.00010162,2]
[334299207,1722925838171,-188.8,0.00010165,2]
[334299209,1722925838181,-300.0,0.000104,3]
[334299211,1722925838191,-1681.31,0.00010442,2]
[334299213,1722925838200,-700.0,0.000105,3]
[334299215,1722925838210,-195.14,0.00010533,2]
[334299217,1722925838222,-1100.0,0.000106,3]
[334299219,1722925838231,-4251.2791,0.0001068,2]
[334299221,1722925838240,-655.4744,0.0001068,2]
[334299223,1722925838250,-690.41528066,0.0001068,2]
[334299225,1722925838260,-1500.0,0.000107,3]
[334299227,1722925838269,-168.57278728,0.00010773,2]
[334299229,1722925838279,-7500.0,0.0001078,2]
[334299231,1722925838288,-10956.0728,0.0001078,2]
[334299233,1722925838298,-500.0,0.0001078,2]
[334299235,1722925838309,-1000.0,0.0001078,2]
[334299237,1722925838318,-259.7342,0.0001078,2]
[334299239,1722925838327,-2500.0,0.0001078,2]
[334299241,1722925838336,-3782.1801,0.0001078,2]
[334299243,1722925838349,-165.56056868,0.0001078,2]
[334299245,1722925838358,-1900.0,0.000108,3]
[334299247,1722925838367,-1022461.15836259,0.000108,2]
[334299250,1722925838384,-932.0,0.000108,2]
[334299286,1722925839756,-67.33682175,0.000108,2]
[334299288,1722925840056,-199887.50481566,0.000108,2]
[334299290,1722925840066,-410.6301,0.00010849,2]
[334299292,1722925840076,-200.0,0.00010873,2]
[334299295,1722925840087,-200.0,0.00010873,2]
[334299298,1722925840100,-174.28646638,0.00010873,2]
[334299301,1722925840112,-25.71353362,0.00010873,2]
[334299303,1722925840122,-200.0,0.00010873,2]
[334299305,1722925840131,-769.65167566,0.00010877,2]
[334299309,1722925840150,-384.30158449,0.00010877,2]
[334299315,1722925840201,-0.00551044,0.00010877,2]
[334299356,1722925840588,-63115.04122941,0.00010877,2]
[334299358,1722925840601,-579.0,0.00010877,2]
[334299360,1722925840611,-11237.0,0.00010877,2]
[334299362,1722925840620,-150.99,0.00010879,2]
[334299364,1722925840628,-586992.36242082,0.0001088,2]
[334299377,1722925840746,-258.66707834,0.0001088,2]
[334299380,1722925840757,-851.78251503,0.0001088,2]
[334299531,1722925842849,-207249.89825664,0.0001088,2]
[334299532,1722925842860,-227.65723628,0.0001088,2]
[334299533,1722925842870,-299.83663058,0.0001088,2]
[334299534,1722925842880,-449.34140696,0.0001088,2]
[334299535,1722925842891,-170.42026434,0.0001088,2]
[334299536,1722925842905,-162.65072108,0.0001088,2]
[334299537,1722925842915,-1050.16898216,0.0001088,2]
[334299538,1722925842925,-181.74161447,0.0001088,2]
[334299539,1722925842935,-2000.0,0.0001088,2]
[334299540,1722925842944,-200.0,0.0001088,2]
[334299541,1722925842954,-300.0,0.000109,3]
[334299542,1722925842963,-1772.871,0.000109,2]
[334299543,1722925842972,-156.16,0.00010912,2]
[334299544,1722925842981,-500.0,0.00010958,2]
[334299545,1722925842990,-500.0,0.00010958,2]
[334299546,1722925843000,-500.0,0.00010958,2]
[334299547,1722925843009,-500.0,0.00010958,2]
[334299548,1722925843018,-303.45884765,0.00010958,2]
[334299549,1722925843028,-250.0,0.00010959,2]
[334299550,1722925843037,-174.19,0.00010959,2]
[334299551,1722925843047,-307.8098839,0.00010973,2]
[334299552,1722925843056,-174.18304571,0.00010973,2]
[334299553,1722925843065,-255.0,0.00010977,2]
[334299554,1722925843074,-2000.0,0.00010989,2]
[334299555,1722925843083,-200.0,0.00010989,2]
[334299556,1722925843093,-200.0,0.00011,2]
[334299557,1722925843102,-550.0,0.00011,2]
[334299558,1722925843111,-82864.16320091,0.00011,2]
[334299559,1722925843135,-16502.21692623,0.00011,2]
[334299560,1722925843146,-11140.0,0.00011,2]
[334299561,1722925843156,-1078.98812,0.00011,2]
[334299562,1722925843167,-14248.94083481,0.00011,2]
[334299579,1722925846641,227.65723628,9.362e-05,2]
[334299580,1722925847312,-1139.5069566,0.0001078,2]
[334299581,1722925847322,-10002.89304333,0.00011,2]
[334299587,1722926006357,500.0,0.00024932,120]
[334299588,1722926182907,2000.0,0.00025,60]
[334299591,1722926351266,1513.17,8.219e-05,2]
[334299593,1722926392854,227.65723628,8.219e-05,2]
[334299594,1722926422690,227.65723628,8.219e-05,2]
[334299595,1722926540678,227.65723628,8.219e-05,2]
[334299597,1722926607254,500.0,0.00024932,120]
[334299598,1722926639190,227.65723628,8.219e-05,2]
[334299599,1722926731872,150.0,0.00025,60]
[334299600,1722926738464,227.65723628,8.219e-05,2]
[334299601,1722926749390,227.65723628,8.219e-05,2]
[334299611,1722926860069,227.65723628,8.219e-05,2]
[334299612,1722926929061,1437.51,8.219e-05,2]
[334299731,1722926957192,227.65723628,8.219e-05,2]
[334299746,1722927032785,-192.6,9.774e-05,2]
[334299748,1722927032795,-155.27,9.783e-05,2]
[334299750,1722927032804,-500.0,9.785e-05,2]
[334299751,1722927032813,-345.47,9.796e-05,2]
[334299752,1722927032823,-300.0,9.814e-05,2]
[334299753,1722927032833,-300.0,9.814e-05,2]
[334299754,1722927032842,-5456.88714363,9.815e-05,2]
[334299755,1722927033035,-5853.00285637,9.815e-05,2]
[334299756,1722927033045,-1290.5284,9.88e-05,2]
[334299757,1722927033055,-150.0,9.888e-05,2]
[334299758,1722927033065,-200.0,9.891e-05,2]
[334299759,1722927033075,-250.0,9.939e-05,2]
[334299760,1722927033084,-394.3,9.956e-05,2]
[334299761,1722927033094,-227.65723628,9.962e-05,2]
[334299762,1722927033104,-155.0,9.962e-05,2]
[334299763,1722927033113,-156.16,0.0001005,2]
[334299764,1722927033124,-150.0,0.00010082,2]
[334299765,1722927033135,-173.05,0.00010258,2]
[334299766,1722927033145,-499.99,0.00010258,2]
[334299767,1722927033155,-916.59,0.00010258,2]
[334299768,1722927033165,-906.3,0.00010345,2]
[334299769,1722927033174,-1437.51,0.00010466,2]
[334299770,1722927033183,-1772.871,0.000107,2]
[334299771,1722927033193,-420.0,0.00010795,2]
[334299772,1722927033202,-420.0,0.00010795,2]
[334299773,1722927033212,-259.7342,0.000108,2]
[334299774,1722927033221,-2977.5183,0.000108,2]
[334299775,1722927033231,-150.0,0.00010899,2]
[334299776,1722927033241,-152.35222135,0.000109,2]
[334299777,1722927033250,-14134.7269,0.000109,2]
[334299778,1722927033260,-20369.2611,0.000109,2]
[334299779,1722927033270,-2680.25358745,0.000109,2]
[334299841,1722927040062,-1690.48326357,0.000109,2]
[334299844,1722927040084,-726.82821617,0.000109,2]
[334299846,1722927040095,-5350.19773281,0.000109,2]
[334299848,1722927040106,-4274.721,0.000109,2]
[334299850,1722927040116,-162.42891547,0.000109,2]
[334299852,1722927040126,-115.20354754,0.000109,2]
[334299854,1722927040142,-271.18984634,0.000109,2]
[334299856,1722927040152,-336.2036,0.000109,2]
[334299858,1722927040161,-349.98023162,0.000109,2]
[334299860,1722927040173,-1131.56942138,0.000109,2]
[334299862,1722927040182,-759.6713044,0.000109,2]
[334299864,1722927040192,-173.5900964,0.000109,2]
[334299866,1722927040201,-250.0,0.00010959,2]
[334299868,1722927040210,-158.73,0.00010959,2]
[334299870,1722927040220,-151.49,0.0001099,2]
[334299872,1722927040229,-498.452,0.00010996,2]
[334299874,1722927040239,-143.65778634,0.00010997,2]
[334299876,1722927040250,-19.92416386,0.00010997,2]
[334299879,1722927040260,-246.68100241,0.00010999,2]
[334299886,1722927040313,-687.79291592,0.00010959,2]
[334299895,1722927040402,-105.86708408,0.00010959,2]
[334299897,1722927040412,-253.31899759,0.00010999,2]
[334299899,1722927040421,-500.0,0.00010999,2]
[334299901,1722927040435,-500.0,0.00010999,2]
[334299903,1722927040447,-500.0,0.00010999,2]
[334299905,1722927040458,-290.51050968,0.00010999,2]
[334299907,1722927040467,-37132.51932417,0.00011,2]
[334299910,1722927040478,-3054.19398321,0.00011,2]
[334299918,1722927040552,-2800.3,0.00011,2]
[334299920,1722927040563,-676.23,0.00011,2]
[334299932,1722927040680,-6032.55630432,0.00011,2]
[334299934,1722927040692,-379.9422459,0.00011,2]
[334299936,1722927040704,-3242.99154062,0.00011,2]
[334299939,1722927040716,-280.585,0.00011,2]
[334300049,1722927043822,-250.0,0.00010789,2]
[334300051,1722927043831,-2203.73619568,0.00011,2]
[334300053,1722927043843,-3898.14041674,0.00011,2]
[334300054,1722927043855,-9860.17239288,0.00011,2]
[334300056,1722927043867,-96249.65283404,0.00011,2]
[334300058,1722927043878,-486.63267801,0.00011,2]
[334300060,1722927043896,-657.21388295,0.00011,2]
[334300062,1722927043907,-1268.25070353,0.00011,2]
[334300064,1722927043919,-254536.0,0.00011,2]
[334300065,1722927043931,-673.14206966,0.00011,2]
[334300067,1722927043942,-28015.80919684,0.00011,2]
[334300069,1722927043954,-65687.96345455,0.00011,2]
[334300071,1722927043966,-11737.53845836,0.00011,2]
[334300073,1722927043977,-13924.72455821,0.00011,2]
[334300074,1722927043989,-27908.50961047,0.00011,2]
[334300391,1722927047311,-10648.64827033,0.000109,2]
[334300393,1722927047321,-9023.0989511,0.00011,2]
[334300427,1722927047596,-1120.735875,0.00011,2]
[334300430,1722927047607,-444.94458446,0.00011,2]
[334300480,1722927048194,227.65723628,8.219e-05,2]
[334300963,1722927143197,227.65723628,8.219e-05,2]
[334300964,1722927215477,500.0,0.00024932,120]
[334300965,1722927251199,227.65723628,8.219e-05,2]
[334300967,1722927285746,4141.8,0.00025,60]
[334300971,1722927401651,1301.54,8.343e-05,2]
[334300972,1722927460212,227.65723628,8.343e-05,2]
[334300973,1722927545234,227.65723628,8.343e-05,2]
[334300985,1722927806657,500.0,0.00024932,120]
[334300996,1722927995722,2048.57699557,0.00025,120]
[334301084,1722928201795,25082.75347339,0.00025,60]
[334301099,1722928232359,-937.53,9.812e-05,2]
[334301100,1722928232370,-258.57,9.847e-05,2]
[334301101,1722928232380,-488.4,9.859e-05,2]
[334301102,1722928232390,-250.0,9.897e-05,2]
[334301103,1722928232399,-255.42,9.929e-05,2]
[334301104,1722928232409,-1573.206132,9.929e-05,2]
[334301105,1722928232418,-3290.24,9.937e-05,2]
[334301106,1722928232429,-173.05,0.00010057,2]
[334301107,1722928232439,-197.15,0.00010085,2]
[334301108,1722928232450,-156.17,0.00010102,2]
[334301109,1722928232459,-2209.36735237,0.00010113,2]
[334301110,1722928232469,-155.0,0.00010113,2]
[334301111,1722928232479,-526.23743645,0.00010113,2]
[334301112,1722928232488,-155.0,0.00010113,2]
[334301113,1722928232499,-155.12599724,0.00010113,2]
[334301114,1722928232508,-184.65496957,0.00010113,2]
[334301115,1722928232518,-289.98099496,0.00010113,2]
[334301116,1722928232527,-499.99,0.00010197,2]
[334301117,1722928232537,-175.22,0.00010308,2]
[334301118,1722928232546,-1301.54,0.00010607,2]
[334301119,1722928232556,-426.02,0.00010717,2]
[334301120,1722928232566,-426.02,0.00010717,2]
[334301121,1722928232576,-426.02,0.00010717,2]
[334301122,1722928232585,-426.02,0.00010717,2]
[334301123,1722928232594,-426.02,0.00010717,2]
[334301124,1722928232604,-848.79,0.00010717,2]
[334301125,1722928232614,-150.0,0.00010727,2]
[334301126,1722928232624,-10479.24689634,0.00010728,2]
[334301127,1722928232633,-426.02,0.00010778,2]
[334301128,1722928232644,-150.0,0.00010796,2]
[334301129,1722928232653,-426.07,0.000108,2]
[334301130,1722928232663,-3000.0,0.0001089,2]
[334301131,1722928232672,-3000.0,0.0001089,2]
[334301132,1722928232682,-3000.0,0.0001089,2]
[334301133,1722928232693,-433.2501,0.000109,2]
[334301134,1722928232703,-2973.5394,0.000109,2]
[334301135,1722928232712,-426.07,0.000109,2]
[334301136,1722928232722,-1210.79357361,0.000109,2]
[334301137,1722928232732,-184.90563548,0.000109,2]
[334301138,1722928232743,-192.42590303,0.000109,2]
[334301139,1722928232755,-733.9663,0.000109,2]
[334301140,1722928232765,-1647.9039338,0.000109,2]
[334301141,1722928232774,-1107.19936248,0.000109,2]
[334301142,1722928232783,-165.072112,0.000109,2]
[334301143,1722928232793,-7496.96929365,0.000109,2]
[334301144,1722928232982,-643.659991,0.000109,2]
[334301147,1722928232993,-421.75161424,0.000109,2]
[334301264,1722928238417,-976.96776414,0.000109,2]
[334301265,1722928238429,-721.25026421,0.000109,2]
[334301266,1722928238439,-634.75570233,0.000109,2]
[334301267,1722928238451,-843.90025371,0.000109,2]
[334301268,1722928238460,-250.0,0.00010959,2]
[334301269,1722928238469,-506.09974629,0.00010959,2]
[334301270,1722928238481,-279.82898306,0.00010959,2]
[334301271,1722928238494,-675.61127065,0.00010959,2]
[334301272,1722928238504,-150.84,0.00010959,2]
[334301273,1722928238514,-754.21,0.00010959,2]
[334301274,1722928238523,-153.25,0.0001099,2]
[334301275,1722928238534,-151.06328511,0.00010997,2]
[334301276,1722928238544,-1187.88037264,0.00010999,3]
[334301277,1722928238553,-914.64,0.00010999,2]
[334301278,1722928238563,-914.64,0.00010999,2]
[334301279,1722928238573,-914.64,0.00010999,2]
[334301280,1722928238582,-914.64,0.00010999,2]
[334301281,1722928238592,-541.23946293,0.00010999,2]
[334301282,1722928238604,-373.40053707,0.00010999,2]
[334301283,1722928238613,-914.64,0.00010999,2]
[334301284,1722928238623,-914.64,0.00010999,2]
[334301285,1722928238632,-914.64,0.00010999,2]
[334301286,1722928238642,-625.38163856,0.00010999,2]
[334301287,1722928238654,-289.25836144,0.00010999,2]
[334301288,1722928238664,-914.64,0.00010999,2]
[334301289,1722928238674,-914.64,0.00010999,2]
[334301290,1722928238684,-745.64753943,0.00010999,2]
[334301291,1722928238696,-168.99246057,0.00010999,2]
[334301292,1722928238705,-682.33941532,0.00010999,2]
[334301293,1722928238716,-232.30058468,0.00010999,2]
[334301295,1722928238724,-195.68111494,0.00010999,2]
[334301297,1722928238736,-534.02114835,0.00010999,2]
[334301299,1722928238748,-184.93773671,0.00010999,2]
[334301301,1722928238759,-914.64,0.00010999,2]
[334301303,1722928238768,-914.64,0.00010999,2]
[334301305,1722928238778,-914.64,0.00010999,2]
[334301307,1722928238787,-914.64,0.00010999,2]
[334301310,1722928238806,-914.64,0.00010999,2]
[334301312,1722928238820,-914.64,0.00010999,2]
[334301315,1722928238830,-914.64,0.00010999,2]
[334301317,1722928238841,-914.64,0.00010999,2]
[334301319,1722928238851,-914.64,0.00010999,2]
[334301321,1722928238860,-914.6940556,0.00010999,2]
[334301323,1722928238870,-494.80400351,0.00010999,2]
[334301325,1722928238880,-2400.0,0.00011,2]
[334301327,1722928238890,-98768.66280128,0.00011,2]
[334301540,1722928241086,-428.49837313,0.00011,2]
[334301544,1722928241116,-5585.3,0.00011,2]
[334301546,1722928241127,-794.7339254,0.00011,2]
[334301548,1722928241138,-14617.53639966,0.00011,2]
[334301550,1722928241149,-1139.45902898,0.00011,2]
[334301553,1722928241160,-489.3363782,0.00011,2]
[334301556,1722928241187,-2834.88626195,0.00011,2]
[334301559,1722928241199,-3212.44913101,0.00011,2]
[334301561,1722928241210,-1019.87408591,0.00011,2]
[334301563,1722928241221,-2936.22,0.00011,2]
[334301565,1722928241232,-3756.6679994,0.00011,2]
[334301660,1722928243435,-2137.27427931,0.00011,2]
[334301661,1722928243533,-1720634.82998226,0.00011,2]
[334301662,1722928243545,-321053.81069422,0.00011,2]
[334301732,1722928244447,-353.4100011,0.00011,2]
[334301735,1722928244460,-96249.65283404,0.00011,2]
[334301951,1722928246509,-2696.86734773,0.00011,2]
[334301965,1722928246639,-55771.70057472,0.00011,2]
[334302476,1722928279108,1205.0,9.036e-05,2]
[334302506,1722928390600,500.0,0.00025,120]
[334302519,1722928406889,500.0,0.00024999,120]
[334302520,1722928414653,200.0,0.00025,120]
[334302525,1722928453740,400.0,0.00025,60]
[334302531,1722928866805,1144.75,8.325e-05,2]
[334302534,1722929005616,500.0,0.00024932,120]
[334302566,1722929322673,500.0,0.00025,60]
[334302603,1722929360149,1087.51,8.219e-05,2]
[334302604,1722929361523,500.0,0.00025,60]
[334302611,1722929432464,-250.0,9.792e-05,2]
[334302612,1722929432475,-173.05,9.796e-05,2]
[334302613,1722929432486,-716.21015169,9.796e-05,2]
[334302614,1722929432495,-803.68163958,0.0001,2]
[334302615,1722929432505,-168.43,0.00010062,2]
[334302616,1722929432515,-175.22,0.00010072,2]
[334302617,1722929432525,-750.03,0.00010089,2]
[334302618,1722929432535,-315.44,0.00010115,2]
[334302619,1722929432544,-197.15,0.00010157,2]
[334302620,1722929432554,-249.97,0.00010352,2]
[334302621,1722929432563,-276.37,0.00010409,2]
[334302622,1722929432573,-1087.51,0.0001048,2]
[334302623,1722929432583,-150.0,0.00010643,2]
[334302624,1722929432592,-107.29923393,0.00010647,2]
[334302630,1722929433624,-42.70076607,0.00010647,2]